[Event "Titled Tuesday Blitz February 28 Early 2023"]
[White "Matlakov, Maxim"]
[Black "Adhiban, B."]
[WhiteFideId "4168003"]
[BlackFideId "5018471"]
[WhiteElo "2666"]
[BlackElo "2587"]
[Result "1-0"]
[Round "11"]
[TimeControl "180+2"]
[Date "2023.02.28"]
[WhiteClock "0:00:07"]
[BlackClock "0:00:06"]

1. e4 {[%clk 0:03:00]}  c5 {[%clk 0:02:59]} 2. Nf3 {[%clk 0:03:00]}  Nc6 {[%clk 0:03:00]} 3. Bb5 {[%clk 0:02:59]}  d6 {[%clk 0:03:00]} 4. O-O {[%clk 0:02:58]}  Bd7 {[%clk 0:03:00]} 5. Re1 {[%clk 0:02:58]}  a6 {[%clk 0:03:01]} 6. Bxc6 {[%clk 0:02:57]}  Bxc6 {[%clk 0:03:01]} 7. c3 {[%clk 0:02:57]}  Nf6 {[%clk 0:03:01]} 8. d4 {[%clk 0:02:57]}  Bxe4 {[%clk 0:02:57]} 9. Bg5 {[%clk 0:02:56]}  Bd5 {[%clk 0:02:56]} 10. c4 {[%clk 0:02:47]}  Bxc4 {[%clk 0:02:49]} 11. Nc3 {[%clk 0:02:46]}  Be6 {[%clk 0:02:48]} 12. d5 {[%clk 0:02:42]}  Bf5 {[%clk 0:02:36]} 13. Nh4 {[%clk 0:02:37]}  Qd7 {[%clk 0:02:29]} 14. Nxf5 {[%clk 0:02:22]}  Qxf5 {[%clk 0:02:29]} 15. Qa4+ {[%clk 0:02:23]}  Qd7 {[%clk 0:02:28]} 16. Qh4 {[%clk 0:02:21]}  h6 {[%clk 0:02:25]} 17. b4 {[%clk 0:02:08]}  cxb4 {[%clk 0:02:20]} 18. Bxf6 {[%clk 0:02:07]}  gxf6 {[%clk 0:02:16]} 19. Ne4 {[%clk 0:02:06]}  O-O-O {[%clk 0:02:05]} 20. Rab1 {[%clk 0:02:01]}  a5 {[%clk 0:01:43]} 21. Qg3 {[%clk 0:01:48]}  f5 {[%clk 0:01:33]} 22. Nd2 {[%clk 0:01:48]}  f4 {[%clk 0:01:25]} 23. Qxf4 {[%clk 0:01:26]}  Rg8 {[%clk 0:01:25]} 24. Qxf7 {[%clk 0:01:16]}  Rg7 {[%clk 0:01:16]} 25. Qf4 {[%clk 0:00:51]}  Qg4 {[%clk 0:01:15]} 26. Qc4+ {[%clk 0:00:49]}  Kb8 {[%clk 0:01:12]} 27. g3 {[%clk 0:00:49]}  Qxc4 {[%clk 0:01:03]} 28. Nxc4 {[%clk 0:00:50]}  Rg5 {[%clk 0:01:02]} 29. Red1 {[%clk 0:00:37]}  Rc8 {[%clk 0:01:02]} 30. Nxa5 {[%clk 0:00:36]}  Rc5 {[%clk 0:01:02]} 31. Nb3 {[%clk 0:00:33]}  Rcxd5 {[%clk 0:01:02]} 32. Nd4 {[%clk 0:00:28]}  Bg7 {[%clk 0:00:26]} 33. Ne6 {[%clk 0:00:27]}  Rxd1+ {[%clk 0:00:26]} 34. Rxd1 {[%clk 0:00:28]}  Rg6 {[%clk 0:00:27]} 35. Nxg7 {[%clk 0:00:22]}  Rxg7 {[%clk 0:00:28]} 36. Rd4 {[%clk 0:00:23]}  Kc7 {[%clk 0:00:27]} 37. Rxb4 {[%clk 0:00:22]}  d5 {[%clk 0:00:28]} 38. f4 {[%clk 0:00:20]}  Kc6 {[%clk 0:00:27]} 39. Kf2 {[%clk 0:00:20]}  b5 {[%clk 0:00:27]} 40. a4 {[%clk 0:00:19]}  bxa4 {[%clk 0:00:26]} 41. Rxa4 {[%clk 0:00:20]}  Kc5 {[%clk 0:00:25]} 42. Ra6 {[%clk 0:00:20]}  Rf7 {[%clk 0:00:18]} 43. Ke3 {[%clk 0:00:17]}  Rf6 {[%clk 0:00:15]} 44. Rxf6 {[%clk 0:00:12]}  exf6 {[%clk 0:00:16]} 45. g4 {[%clk 0:00:12]}  Kc4 {[%clk 0:00:16]} 46. h4 {[%clk 0:00:07]}  Kc3 {[%clk 0:00:16]} 47. Ke2 {[%clk 0:00:08]}  Kc2 {[%clk 0:00:15]} 48. Ke3 {[%clk 0:00:08]}  Kc3 {[%clk 0:00:15]} 49. Ke2 {[%clk 0:00:09]}  Kd4 {[%clk 0:00:13]} 50. h5 {[%clk 0:00:04]}  Kc3 {[%clk 0:00:02]} 51. g5 {[%clk 0:00:03]}  Kc2 {[%clk 0:00:03]} 52. Ke3 {[%clk 0:00:03]}  Kc3 {[%clk 0:00:03]} 53. Ke2 {[%clk 0:00:03]}  Kc2 {[%clk 0:00:03]} 54. Ke3 {[%clk 0:00:03]}  Kc3 {[%clk 0:00:03]} 55. gxh6 {[%clk 0:00:04]}  d4+ {[%clk 0:00:04]} 56. Ke4 {[%clk 0:00:04]}  d3 {[%clk 0:00:04]} 57. h7 {[%clk 0:00:05]}  d2 {[%clk 0:00:05]} 58. h8=Q {[%clk 0:00:05]}  d1=Q {[%clk 0:00:06]} 59. Qxf6+ {[%clk 0:00:06]}  Kc2 {[%clk 0:00:05]} 60. Qc6+ {[%clk 0:00:05]}  Kb1 {[%clk 0:00:05]} 61. Qb5+ {[%clk 0:00:06]}  Ka1 {[%clk 0:00:06]} 62. Qa5+ {[%clk 0:00:05]}  Kb1 {[%clk 0:00:06]} 63. Qb4+ {[%clk 0:00:06]}  Ka1 {[%clk 0:00:06]} 64. Qd4+ {[%clk 0:00:06]}  Qxd4+ {[%clk 0:00:06]} 65. Kxd4 {[%clk 0:00:07]} 1-0


[Site "https://www.chess.com"]

[Event "Titled Tuesday Blitz February 28 Early 2023"]
[White "Rustemov, Alexander"]
[Black "Carlsen, Magnus"]
[WhiteFideId "4119002"]
[BlackFideId "1503014"]
[WhiteElo "2904"]
[BlackElo "2852"]
[Result "1/2-1/2"]
[Round "11"]
[TimeControl "180+2"]
[Date "2023.02.28"]
[WhiteClock "0:00:04"]
[BlackClock "0:01:35"]

1. d4 {[%clk 0:03:00]}  Nf6 {[%clk 0:03:00]} 2. c4 {[%clk 0:03:01]}  e6 {[%clk 0:03:01]} 3. Nf3 {[%clk 0:03:01]}  b6 {[%clk 0:03:01]} 4. a3 {[%clk 0:03:00]}  Bb7 {[%clk 0:02:59]} 5. Nc3 {[%clk 0:03:00]}  g6 {[%clk 0:03:00]} 6. Bf4 {[%clk 0:02:59]}  Bg7 {[%clk 0:02:59]} 7. e3 {[%clk 0:03:00]}  O-O {[%clk 0:02:58]} 8. h3 {[%clk 0:03:00]}  d6 {[%clk 0:02:58]} 9. Be2 {[%clk 0:02:59]}  Nbd7 {[%clk 0:02:58]} 10. Qc2 {[%clk 0:02:58]}  e5 {[%clk 0:02:57]} 11. Bh2 {[%clk 0:02:57]}  exd4 {[%clk 0:02:58]} 12. exd4 {[%clk 0:02:48]}  Re8 {[%clk 0:02:58]} 13. O-O {[%clk 0:02:48]}  Ne4 {[%clk 0:02:58]} 14. Rfe1 {[%clk 0:02:33]}  Nxc3 {[%clk 0:02:57]} 15. Qxc3 {[%clk 0:02:19]}  a5 {[%clk 0:02:57]} 16. b3 {[%clk 0:02:10]}  Qf6 {[%clk 0:02:56]} 17. Rad1 {[%clk 0:01:45]}  Re7 {[%clk 0:02:51]} 18. Qd2 {[%clk 0:01:37]}  Rae8 {[%clk 0:02:50]} 19. Bg3 {[%clk 0:01:29]}  h6 {[%clk 0:02:50]} 20. b4 {[%clk 0:01:11]}  a4 {[%clk 0:02:48]} 21. c5 {[%clk 0:00:49]}  bxc5 {[%clk 0:02:44]} 22. dxc5 {[%clk 0:00:49]}  dxc5 {[%clk 0:02:44]} 23. Bxc7 {[%clk 0:00:46]}  cxb4 {[%clk 0:02:44]} 24. Bd6 {[%clk 0:00:40]}  Rxe2 {[%clk 0:02:34]} 25. Rxe2 {[%clk 0:00:38]}  Rxe2 {[%clk 0:02:34]} 26. Qxe2 {[%clk 0:00:38]}  b3 {[%clk 0:02:35]} 27. Qe8+ {[%clk 0:00:33]}  Nf8 {[%clk 0:02:32]} 28. Bxf8 {[%clk 0:00:28]}  Bxf8 {[%clk 0:02:33]} 29. Rd8 {[%clk 0:00:28]}  Qg7 {[%clk 0:02:32]} 30. Rb8 {[%clk 0:00:24]}  Bxf3 {[%clk 0:02:02]} 31. gxf3 {[%clk 0:00:24]}  Qa1+ {[%clk 0:02:03]} 32. Kg2 {[%clk 0:00:24]}  Qg7 {[%clk 0:01:57]} 33. Qxa4 {[%clk 0:00:24]}  b2 {[%clk 0:01:57]} 34. Qb4 {[%clk 0:00:16]}  Kh7 {[%clk 0:01:51]} 35. Qxb2 {[%clk 0:00:16]}  Qxb2 {[%clk 0:01:52]} 36. Rxb2 {[%clk 0:00:16]}  Bxa3 {[%clk 0:01:53]} 37. Rb7 {[%clk 0:00:16]}  Kg7 {[%clk 0:01:52]} 38. f4 {[%clk 0:00:11]}  Kf6 {[%clk 0:01:49]} 39. Kf3 {[%clk 0:00:11]}  Ke6 {[%clk 0:01:50]} 40. Ke4 {[%clk 0:00:11]}  f5+ {[%clk 0:01:50]} 41. Kf3 {[%clk 0:00:10]}  h5 {[%clk 0:01:49]} 42. Rb6+ {[%clk 0:00:10]}  Kf7 {[%clk 0:01:49]} 43. Ra6 {[%clk 0:00:11]}  Bc5 {[%clk 0:01:49]} 44. Rc6 {[%clk 0:00:10]}  Bd4 {[%clk 0:01:49]} 45. Kg3 {[%clk 0:00:10]}  Kg7 {[%clk 0:01:48]} 46. Kf3 {[%clk 0:00:06]}  Kf7 {[%clk 0:01:44]} 47. Rd6 {[%clk 0:00:06]}  Ba1 {[%clk 0:01:42]} 48. Ra6 {[%clk 0:00:06]}  Bd4 {[%clk 0:01:42]} 49. Ra4 {[%clk 0:00:07]}  Bb2 {[%clk 0:01:41]} 50. Ke2 {[%clk 0:00:07]}  Bf6 {[%clk 0:01:41]} 51. Kd3 {[%clk 0:00:06]}  Bh4 {[%clk 0:01:41]} 52. f3 {[%clk 0:00:06]}  Bf6 {[%clk 0:01:40]} 53. Kc4 {[%clk 0:00:06]}  Bb2 {[%clk 0:01:38]} 54. Kd5 {[%clk 0:00:06]}  Kf8 {[%clk 0:01:37]} 55. Ke6 {[%clk 0:00:06]}  Bc3 {[%clk 0:01:36]} 56. Ra8+ {[%clk 0:00:06]}  Kg7 {[%clk 0:01:36]} 57. Ra7+ {[%clk 0:00:06]}  Kf8 {[%clk 0:01:36]} 58. Ra6 {[%clk 0:00:05]}  Kg7 {[%clk 0:01:36]} 59. Ra7+ {[%clk 0:00:04]}  Kf8 {[%clk 0:01:36]} 60. Rb7 {[%clk 0:00:04]}  Ba1 {[%clk 0:01:35]} 61. Rb8+ {[%clk 0:00:03]}  Kg7 {[%clk 0:01:35]} 62. Rb7+ {[%clk 0:00:04]}  Kf8 {[%clk 0:01:35]} 63. Rb8+ {[%clk 0:00:04]}  Kg7 {[%clk 0:01:35]} 64. Rb7+ {[%clk 0:00:04]}  Kf8 {[%clk 0:01:35]} 1/2-1/2


[Site "https://www.chess.com"]

[Event "Titled Tuesday Blitz February 28 Early 2023"]
[White "Vokhidov, Shamsiddin"]
[Black "Erigaisi Arjun"]
[WhiteFideId "14204223"]
[BlackFideId "35009192"]
[WhiteElo "2570"]
[BlackElo "2737"]
[Result "0-1"]
[Round "11"]
[TimeControl "180+2"]
[Date "2023.02.28"]
[WhiteClock "0:00:37"]
[BlackClock "0:00:53"]

1. e4 {[%clk 0:03:00]}  c6 {[%clk 0:02:57]} 2. Nc3 {[%clk 0:03:00]}  d5 {[%clk 0:02:57]} 3. Nf3 {[%clk 0:03:01]}  g6 {[%clk 0:02:57]} 4. d4 {[%clk 0:03:01]}  Bg7 {[%clk 0:02:57]} 5. h3 {[%clk 0:03:01]}  Nf6 {[%clk 0:02:57]} 6. e5 {[%clk 0:03:01]}  Ne4 {[%clk 0:02:57]} 7. Nxe4 {[%clk 0:03:01]}  dxe4 {[%clk 0:02:58]} 8. Ng5 {[%clk 0:03:01]}  c5 {[%clk 0:02:58]} 9. e6 {[%clk 0:02:55]}  Bxe6 {[%clk 0:02:58]} 10. Nxe6 {[%clk 0:02:54]}  fxe6 {[%clk 0:02:59]} 11. dxc5 {[%clk 0:02:54]}  Qxd1+ {[%clk 0:03:00]} 12. Kxd1 {[%clk 0:02:55]}  Nd7 {[%clk 0:03:01]} 13. c3 {[%clk 0:02:50]}  Nxc5 {[%clk 0:02:59]} 14. Be3 {[%clk 0:02:50]}  Rc8 {[%clk 0:02:57]} 15. Kc2 {[%clk 0:02:48]}  a6 {[%clk 0:02:55]} 16. Be2 {[%clk 0:02:43]}  Nd7 {[%clk 0:02:48]} 17. Rad1 {[%clk 0:02:40]}  Nf6 {[%clk 0:02:47]} 18. Rd4 {[%clk 0:02:31]}  O-O {[%clk 0:02:45]} 19. Bc4 {[%clk 0:02:20]}  Rc6 {[%clk 0:02:40]} 20. Bb3 {[%clk 0:02:20]}  h5 {[%clk 0:02:35]} 21. Re1 {[%clk 0:02:17]}  Kh7 {[%clk 0:02:35]} 22. Re2 {[%clk 0:02:17]}  Bh6 {[%clk 0:02:33]} 23. Kd1 {[%clk 0:01:53]}  Bxe3 {[%clk 0:02:24]} 24. Rxe3 {[%clk 0:01:53]}  e5 {[%clk 0:02:20]} 25. Rd2 {[%clk 0:01:51]}  Rd6 {[%clk 0:02:19]} 26. Kc1 {[%clk 0:01:40]}  Nd7 {[%clk 0:02:02]} 27. Rxe4 {[%clk 0:01:31]}  Rxd2 {[%clk 0:02:03]} 28. Kxd2 {[%clk 0:01:32]}  Rxf2+ {[%clk 0:02:03]} 29. Re2 {[%clk 0:01:33]}  Rf6 {[%clk 0:02:00]} 30. Ke3 {[%clk 0:01:27]}  Kg7 {[%clk 0:01:59]} 31. Bd5 {[%clk 0:01:25]}  b6 {[%clk 0:01:54]} 32. b4 {[%clk 0:01:25]}  b5 {[%clk 0:01:53]} 33. Rd2 {[%clk 0:01:22]}  Nb6 {[%clk 0:01:50]} 34. Ke4 {[%clk 0:01:22]}  Rf5 {[%clk 0:01:42]} 35. Be6 {[%clk 0:01:20]}  Rf1 {[%clk 0:01:41]} 36. Rd8 {[%clk 0:01:01]}  Re1+ {[%clk 0:01:34]} 37. Kf3 {[%clk 0:01:01]}  Rc1 {[%clk 0:01:15]} 38. Rb8 {[%clk 0:01:01]}  Rxc3+ {[%clk 0:01:15]} 39. Ke4 {[%clk 0:01:01]}  Rc6 {[%clk 0:01:12]} 40. Kxe5 {[%clk 0:01:00]}  Nc4+ {[%clk 0:01:13]} 41. Bxc4 {[%clk 0:00:55]}  Rxc4 {[%clk 0:01:01]} 42. Rb6 {[%clk 0:00:49]}  Rxb4 {[%clk 0:01:01]} 43. Rxa6 {[%clk 0:00:50]}  h4 {[%clk 0:00:59]} 44. Ra3 {[%clk 0:00:39]}  Rb2 {[%clk 0:00:59]} 45. g3 {[%clk 0:00:38]}  hxg3 {[%clk 0:00:59]} 46. Rxg3 {[%clk 0:00:37]}  Rxa2 {[%clk 0:00:57]} 47. Rb3 {[%clk 0:00:37]}  Re2+ {[%clk 0:00:52]} 48. Kf4 {[%clk 0:00:37]}  Rf2+ {[%clk 0:00:53]} 0-1


[Site "https://www.chess.com"]

[Event "Titled Tuesday Blitz February 28 Early 2023"]
[White "Indjic, Aleksandar"]
[Black "Sadhwani, Raunak"]
[WhiteFideId "911925"]
[BlackFideId "35093487"]
[WhiteElo "2625"]
[BlackElo "2631"]
[Result "0-1"]
[Round "11"]
[TimeControl "180+2"]
[Date "2023.02.28"]
[WhiteClock "0:00:14"]
[BlackClock "0:00:30"]

1. d4 {[%clk 0:03:00]}  Nf6 {[%clk 0:02:56]} 2. Nf3 {[%clk 0:03:01]}  g6 {[%clk 0:02:56]} 3. Bg5 {[%clk 0:03:01]}  Bg7 {[%clk 0:02:56]} 4. Nbd2 {[%clk 0:03:02]}  O-O {[%clk 0:02:56]} 5. c3 {[%clk 0:03:02]}  d6 {[%clk 0:02:56]} 6. e3 {[%clk 0:03:02]}  b6 {[%clk 0:02:55]} 7. Bd3 {[%clk 0:02:57]}  Bb7 {[%clk 0:02:56]} 8. h3 {[%clk 0:02:54]}  c5 {[%clk 0:02:56]} 9. e4 {[%clk 0:02:54]}  h6 {[%clk 0:02:50]} 10. Be3 {[%clk 0:02:50]}  Nc6 {[%clk 0:02:48]} 11. a3 {[%clk 0:02:49]}  e5 {[%clk 0:02:48]} 12. dxe5 {[%clk 0:02:42]}  Nxe5 {[%clk 0:02:47]} 13. Nxe5 {[%clk 0:02:42]}  dxe5 {[%clk 0:02:48]} 14. Qe2 {[%clk 0:02:41]}  Nh5 {[%clk 0:02:44]} 15. g3 {[%clk 0:02:40]}  Qf6 {[%clk 0:02:43]} 16. Nf3 {[%clk 0:02:34]}  Rad8 {[%clk 0:02:43]} 17. Bc2 {[%clk 0:02:28]}  Qe6 {[%clk 0:02:38]} 18. Nd2 {[%clk 0:02:05]}  Qc8 {[%clk 0:01:55]} 19. O-O-O {[%clk 0:01:40]}  Ba6 {[%clk 0:01:56]} 20. c4 {[%clk 0:01:38]}  Qe6 {[%clk 0:01:49]} 21. b3 {[%clk 0:01:32]}  Nf4 {[%clk 0:01:36]} 22. Qf1 {[%clk 0:01:32]}  Qf6 {[%clk 0:01:24]} 23. Nb1 {[%clk 0:01:32]}  Ne6 {[%clk 0:01:24]} 24. Nc3 {[%clk 0:01:31]}  Bb7 {[%clk 0:01:21]} 25. Nd5 {[%clk 0:01:28]}  Bxd5 {[%clk 0:01:21]} 26. Rxd5 {[%clk 0:01:28]}  Rxd5 {[%clk 0:01:21]} 27. cxd5 {[%clk 0:01:12]}  Nd4 {[%clk 0:01:21]} 28. Kb2 {[%clk 0:01:09]}  Qd6 {[%clk 0:01:09]} 29. Bd3 {[%clk 0:01:05]}  f5 {[%clk 0:01:09]} 30. Qc1 {[%clk 0:01:04]}  f4 {[%clk 0:01:05]} 31. Bxd4 {[%clk 0:01:03]}  exd4 {[%clk 0:01:06]} 32. g4 {[%clk 0:01:02]}  Be5 {[%clk 0:01:04]} 33. a4 {[%clk 0:00:59]}  f3 {[%clk 0:01:04]} 34. Qxh6 {[%clk 0:00:51]}  a6 {[%clk 0:00:39]} 35. Kc2 {[%clk 0:00:32]}  c4 {[%clk 0:00:33]} 36. Bxc4 {[%clk 0:00:30]}  Rc8 {[%clk 0:00:33]} 37. Kd1 {[%clk 0:00:13]}  b5 {[%clk 0:00:29]} 38. axb5 {[%clk 0:00:14]}  axb5 {[%clk 0:00:30]} 39. Bxb5 {[%clk 0:00:14]}  Bf4 {[%clk 0:00:30]} 0-1


[Site "https://www.chess.com"]

[Event "Titled Tuesday Blitz February 28 Early 2023"]
[White "Koelle, Tobias"]
[Black "Makarian, Rudik"]
[WhiteFideId "16207378"]
[BlackFideId "44105681"]
[WhiteElo "2497"]
[BlackElo "2419"]
[Result "1-0"]
[Round "11"]
[TimeControl "180+2"]
[Date "2023.02.28"]
[WhiteClock "0:00:12"]
[BlackClock "0:00:02"]

1. d4 {[%clk 0:02:55]}  Nf6 {[%clk 0:02:59]} 2. Nc3 {[%clk 0:02:55]}  d5 {[%clk 0:02:58]} 3. Bf4 {[%clk 0:02:55]}  c5 {[%clk 0:02:54]} 4. e4 {[%clk 0:02:53]}  Nxe4 {[%clk 0:02:42]} 5. Nxe4 {[%clk 0:02:53]}  dxe4 {[%clk 0:02:43]} 6. dxc5 {[%clk 0:02:53]}  Qa5+ {[%clk 0:02:44]} 7. c3 {[%clk 0:02:54]}  Qxc5 {[%clk 0:02:44]} 8. Qa4+ {[%clk 0:02:55]}  Nc6 {[%clk 0:02:44]} 9. Qxe4 {[%clk 0:02:55]}  g6 {[%clk 0:02:45]} 10. Nf3 {[%clk 0:02:53]}  Bg7 {[%clk 0:02:45]} 11. Qe3 {[%clk 0:02:53]}  Qa5 {[%clk 0:02:40]} 12. Be2 {[%clk 0:02:50]}  O-O {[%clk 0:02:39]} 13. O-O {[%clk 0:02:50]}  Bg4 {[%clk 0:02:34]} 14. h3 {[%clk 0:02:49]}  Bf5 {[%clk 0:02:03]} 15. Bh6 {[%clk 0:02:40]}  Rad8 {[%clk 0:01:54]} 16. Bc4 {[%clk 0:02:30]}  Qb6 {[%clk 0:01:39]} 17. Qxb6 {[%clk 0:02:16]}  axb6 {[%clk 0:01:40]} 18. Be3 {[%clk 0:02:16]}  Rd6 {[%clk 0:01:29]} 19. Bxb6 {[%clk 0:01:47]}  Ne5 {[%clk 0:01:28]} 20. Nxe5 {[%clk 0:01:38]}  Rxb6 {[%clk 0:01:28]} 21. Nf3 {[%clk 0:01:12]}  Rxb2 {[%clk 0:01:26]} 22. Nd4 {[%clk 0:01:12]}  Rc8 {[%clk 0:00:40]} 23. Nxf5 {[%clk 0:01:10]}  gxf5 {[%clk 0:00:41]} 24. Bb3 {[%clk 0:01:08]}  Rxc3 {[%clk 0:00:31]} 25. Rad1 {[%clk 0:01:06]}  Rc7 {[%clk 0:00:25]} 26. Rd8+ {[%clk 0:01:05]}  Bf8 {[%clk 0:00:25]} 27. Rfd1 {[%clk 0:01:05]}  e6 {[%clk 0:00:20]} 28. R1d3 {[%clk 0:01:04]}  f4 {[%clk 0:00:13]} 29. R3d4 {[%clk 0:01:00]}  Kg7 {[%clk 0:00:11]} 30. Rxf4 {[%clk 0:00:58]}  Bc5 {[%clk 0:00:12]} 31. Rd3 {[%clk 0:00:52]}  Rc6 {[%clk 0:00:06]} 32. Rg3+ {[%clk 0:00:49]}  Kf8 {[%clk 0:00:06]} 33. Rgf3 {[%clk 0:00:50]}  Rb1+ {[%clk 0:00:06]} 34. Kh2 {[%clk 0:00:45]}  Bd6 {[%clk 0:00:06]} 35. g3 {[%clk 0:00:37]}  Bxf4 {[%clk 0:00:07]} 36. Rxf4 {[%clk 0:00:37]}  Rbc1 {[%clk 0:00:06]} 37. Rh4 {[%clk 0:00:38]}  Kg7 {[%clk 0:00:05]} 38. Rg4+ {[%clk 0:00:38]}  Kh8 {[%clk 0:00:05]} 39. Rf4 {[%clk 0:00:39]}  Rc7 {[%clk 0:00:05]} 40. Rb4 {[%clk 0:00:40]}  R1c6 {[%clk 0:00:05]} 41. Kg2 {[%clk 0:00:41]}  Rd6 {[%clk 0:00:06]} 42. Rf4 {[%clk 0:00:39]}  h6 {[%clk 0:00:06]} 43. h4 {[%clk 0:00:39]}  Kg7 {[%clk 0:00:07]} 44. Rg4+ {[%clk 0:00:40]}  Kf6 {[%clk 0:00:08]} 45. Rf4+ {[%clk 0:00:41]}  Ke7 {[%clk 0:00:08]} 46. Rg4 {[%clk 0:00:41]}  Rd2 {[%clk 0:00:07]} 47. Rg7 {[%clk 0:00:39]}  Rc5 {[%clk 0:00:07]} 48. g4 {[%clk 0:00:33]}  Re5 {[%clk 0:00:07]} 49. Kg3 {[%clk 0:00:32]}  Ree2 {[%clk 0:00:07]} 50. f3 {[%clk 0:00:32]}  Rg2+ {[%clk 0:00:07]} 51. Kf4 {[%clk 0:00:32]}  Rgf2 {[%clk 0:00:07]} 52. Bc4 {[%clk 0:00:29]}  Rc2 {[%clk 0:00:05]} 53. Bb3 {[%clk 0:00:29]}  Rcd2 {[%clk 0:00:04]} 54. Bc4 {[%clk 0:00:29]}  Rc2 {[%clk 0:00:04]} 55. Ke3 {[%clk 0:00:25]}  Rh2 {[%clk 0:00:03]} 56. Bb3 {[%clk 0:00:25]}  Rc3+ {[%clk 0:00:04]} 57. Kf4 {[%clk 0:00:24]}  Rxh4 {[%clk 0:00:04]} 58. Rg8 {[%clk 0:00:22]}  h5 {[%clk 0:00:05]} 59. Rb8 {[%clk 0:00:20]}  Rxg4+ {[%clk 0:00:04]} 60. fxg4 {[%clk 0:00:20]}  hxg4 {[%clk 0:00:04]} 61. Rxb7+ {[%clk 0:00:20]}  Kf6 {[%clk 0:00:03]} 62. Kxg4 {[%clk 0:00:20]}  Rd3 {[%clk 0:00:03]} 63. Kf4 {[%clk 0:00:20]}  Rd4+ {[%clk 0:00:03]} 64. Ke3 {[%clk 0:00:20]}  Rh4 {[%clk 0:00:04]} 65. Rc7 {[%clk 0:00:20]}  Rh7 {[%clk 0:00:04]} 66. Kd3 {[%clk 0:00:19]}  Ke5 {[%clk 0:00:04]} 67. a4 {[%clk 0:00:18]}  Rh3+ {[%clk 0:00:04]} 68. Kc2 {[%clk 0:00:18]}  f5 {[%clk 0:00:04]} 69. Rc6 {[%clk 0:00:17]}  Kd4 {[%clk 0:00:02]} 70. Bxe6 {[%clk 0:00:15]}  Ra3 {[%clk 0:00:03]} 71. Rc4+ {[%clk 0:00:14]}  Ke5 {[%clk 0:00:03]} 72. Bc8 {[%clk 0:00:14]}  f4 {[%clk 0:00:03]} 73. Kb2 {[%clk 0:00:14]}  Rg3 {[%clk 0:00:02]} 74. Bb7 {[%clk 0:00:14]}  f3 {[%clk 0:00:02]} 75. Rc2 {[%clk 0:00:14]}  f2 {[%clk 0:00:03]} 76. Rxf2 {[%clk 0:00:13]}  Kd4 {[%clk 0:00:03]} 77. Rc2 {[%clk 0:00:12]}  Rg7 {[%clk 0:00:03]} 78. Bc6 {[%clk 0:00:12]}  Ke5 {[%clk 0:00:03]} 79. Bb5 {[%clk 0:00:13]}  Kd5 {[%clk 0:00:03]} 80. Kb3 {[%clk 0:00:14]}  Rg1 {[%clk 0:00:02]} 81. Kb4 {[%clk 0:00:13]}  Rg8 {[%clk 0:00:02]} 82. Bc4+ {[%clk 0:00:12]} 1-0


[Site "https://www.chess.com"]

[Event "Titled Tuesday Blitz February 28 Early 2023"]
[White "Moroni, Luca Jr"]
[Black "Grigoriants, Sergey"]
[WhiteFideId "865834"]
[BlackFideId "4130804"]
[WhiteElo "2569"]
[BlackElo "2502"]
[Result "0-1"]
[Round "11"]
[TimeControl "180+2"]
[Date "2023.02.28"]
[WhiteClock "0:00:35"]
[BlackClock "0:00:14"]

1. Nc3 {[%clk 0:03:00]}  d5 {[%clk 0:02:49]} 2. d4 {[%clk 0:03:00]}  Nf6 {[%clk 0:02:47]} 3. Bf4 {[%clk 0:03:00]}  e6 {[%clk 0:02:44]} 4. e3 {[%clk 0:03:00]}  Bd6 {[%clk 0:02:37]} 5. Qf3 {[%clk 0:02:59]}  O-O {[%clk 0:02:34]} 6. g4 {[%clk 0:02:57]}  c5 {[%clk 0:02:23]} 7. dxc5 {[%clk 0:02:56]}  Bxc5 {[%clk 0:02:15]} 8. O-O-O {[%clk 0:02:56]}  Qa5 {[%clk 0:02:12]} 9. Kb1 {[%clk 0:02:51]}  e5 {[%clk 0:01:24]} 10. Bxe5 {[%clk 0:02:37]}  Bxg4 {[%clk 0:01:24]} 11. Qg3 {[%clk 0:02:36]}  Nbd7 {[%clk 0:01:24]} 12. Bxf6 {[%clk 0:02:16]}  Nxf6 {[%clk 0:01:23]} 13. Be2 {[%clk 0:02:17]}  Be6 {[%clk 0:01:16]} 14. Nf3 {[%clk 0:02:16]}  Bb4 {[%clk 0:01:14]} 15. Rhg1 {[%clk 0:01:44]}  g6 {[%clk 0:01:14]} 16. Nb5 {[%clk 0:01:44]}  Ne4 {[%clk 0:01:01]} 17. Qh4 {[%clk 0:01:43]}  a6 {[%clk 0:00:45]} 18. Nbd4 {[%clk 0:01:36]}  Rac8 {[%clk 0:00:39]} 19. Bd3 {[%clk 0:01:10]}  Nc3+ {[%clk 0:00:29]} 20. bxc3 {[%clk 0:01:09]}  Bxc3 {[%clk 0:00:30]} 21. Ng5 {[%clk 0:01:08]}  Qb4+ {[%clk 0:00:30]} 22. Nb3 {[%clk 0:00:51]}  Qxh4 {[%clk 0:00:30]} 23. f4 {[%clk 0:00:50]}  d4 {[%clk 0:00:25]} 24. f5 {[%clk 0:00:44]}  Bxb3 {[%clk 0:00:23]} 25. axb3 {[%clk 0:00:45]}  dxe3 {[%clk 0:00:23]} 26. fxg6 {[%clk 0:00:44]}  hxg6 {[%clk 0:00:22]} 27. Rdf1 {[%clk 0:00:44]}  Bg7 {[%clk 0:00:16]} 28. Nf3 {[%clk 0:00:40]}  Qb4 {[%clk 0:00:15]} 29. Kc1 {[%clk 0:00:35]}  e2 {[%clk 0:00:14]} 30. Bxe2 {[%clk 0:00:35]} 0-1


[Site "https://www.chess.com"]